bitfinex/quotes_SOLUSD_20241010
["timestamp","ask_amount","ask_price","bid_price","bid_amount"]
[1728578539400,7.2186,138.53,138.5,18.0502]
[1728578540591,19.489219,138.57,138.49,7.2205]
[1728578540808,7.2192,138.52,138.49,7.2205]
[1728578541801,7.2188,138.53,138.49,7.2205]
[1728578542504,7.2177,138.55,138.51,25.2684]
[1728578542679,7.2174,138.56,138.52,8.66225651]
[1728578546892,1.447719,138.59,138.51,18.049]
[1728578547086,7.2178,138.55,138.51,25.2685]
[1728578547285,7.2184,138.54,138.52,5.40949778]
[1728578547587,1.447719,138.57,138.48,24.4641]
[1728578547588,1.447719,138.53,138.48,24.4641]
[1728578547789,8.665019,138.56,138.52,7.219]
[1728578548391,1.447719,138.56,138.52,1.4436018]
[1728578548588,7.2177,138.55,138.51,7.2195]
[1728578548793,7.2177,138.55,138.51,8.66310473]
[1728578549289,1.447719,138.56,138.5,18.05]
[1728578549505,7.2182,138.54,138.5,25.27]
[1728578550410,7.2177,138.55,138.51,7.2196]
[1728578551407,1.447719,138.57,138.5,18.05]
[1728578551704,7.2187,138.53,138.5,18.05]
[1728578551917,7.2183,138.54,138.51,1.44375075]
[1728578552484,7.2183,138.54,138.5,25.2701]
[1728578553611,7.2177,138.55,138.51,8.66324793]
[1728578556411,7.2177,138.55,138.51,8.66320676]
[1728578557511,8.664919,138.56,138.52,7.219]
[1728578557681,7.2172,138.56,138.53,1.44358543]
[1728578558107,1.447719,138.59,138.54,1.44358618]
[1728578558413,7.2157,138.59,138.55,7.2175]
[1728578558787,7.2157,138.59,138.56,1.44327847]
[1728578559007,7.2157,138.59,138.56,8.66027847]
[1728578559188,7.2157,138.59,138.56,1.44327847]
[1728578559611,7.2153,138.6,138.56,8.66027847]
[1728578559992,1.447719,138.61,138.54,38.71621344]
[1728578560189,7.2156,138.59,138.55,7.2174]
[1728578560401,1.447719,138.58,138.54,6.632]
[1728578560605,18.039,138.59,138.52,22.3856]
[1728578560811,7.2183,138.54,138.5,13.4186]
[1728578561124,7.2183,138.54,138.51,1.44370942]
[1728578561818,7.2183,138.54,138.5,13.4186]
[1728578561997,7.2183,138.54,138.5,31.4689]
[1728578562391,7.2183,138.54,138.51,1.44369099]
[1728578563020,7.2183,138.54,138.51,1.44369028]
[1728578563500,7.2183,138.54,138.5,31.4689]
[1728578563698,7.2183,138.54,138.51,1.44368942]
[1728578563927,7.2183,138.54,138.5,31.4689]
[1728578564220,8.666419,138.53,138.5,18.0504]
[1728578564424,1.447719,138.55,138.5,19.4942582]
[1728578564603,1.447719,138.55,138.5,25.2705]
[1728578564922,7.2187,138.53,138.5,18.0504]
[1728578567209,7.2187,138.53,138.5,19.49422505]
[1728578567513,7.2187,138.53,138.5,18.0504]
[1728578567920,7.2187,138.53,138.5,19.49422124]
[1728578568624,7.2187,138.53,138.5,26.71432124]
[1728578569119,8.665819,138.55,138.5,26.71432124]
[1728578569315,7.2181,138.55,138.52,7.219]
[1728578569517,21.447719,138.56,138.52,7.219]
[1728578569518,7.2172,138.56,138.52,1.44365832]
[1728578569723,7.2172,138.56,138.52,18.0477]
[1728578569906,7.2172,138.56,138.52,25.2666]
[1728578573313,7.2168,138.57,138.53,7.2185]
[1728578573518,7.2168,138.57,138.53,8.66201477]
[1728578573727,7.2168,138.57,138.54,7.218]
[1728578574113,7.2168,138.57,138.53,7.2184]
[1728578575713,1.447719,138.56,138.52,18.0477]
[1728578575913,7.2177,138.55,138.52,18.0477]
[1728578576348,7.2181,138.54,138.51,7.2196]
[1728578576631,7.2177,138.55,138.51,7.2196]
[1728578577370,20.0,138.59,138.48,29.80961344]
[1728578577371,19.493319,138.54,138.48,15.7707]
[1728578577546,19.493319,138.54,138.47,24.3703]
[1728578577547,7.2205,138.5,138.47,24.3703]
[1728578578247,1.447719,138.54,138.47,6.3171]
[1728578578417,7.2212,138.48,138.44,25.28]
[1728578578841,7.2236,138.44,138.39,6.1195]
[1728578579043,7.2234,138.44,138.4,7.2253]
[1728578579341,7.225,138.41,138.35,39.923]
[1728578579531,7.2254,138.4,138.36,7.227]
[1728578579711,7.2253,138.41,138.36,7.227]
[1728578579915,1.447719,138.43,138.36,7.2274]
[1728578580151,7.2253,138.41,138.37,7.2268]
[1728578580323,7.2253,138.41,138.35,39.923]
[1728578580649,7.2261,138.39,138.35,18.0696]
[1728578580829,1.447719,138.38,138.35,18.0696]
[1728578581146,7.2255,138.4,138.35,26.74301697]
[1728578581350,1.447719,138.39,138.35,18.0696]
[1728578581755,7.2248,138.42,138.35,18.0696]
[1728578581932,1.447719,138.41,138.35,18.0696]
[1728578582336,8.672619,138.41,138.37,7.2268]
[1728578582755,1.447719,138.41,138.37,7.2268]
[1728578584041,6.1721,138.44,138.38,1.44516734]
[1728578584042,1.447719,138.43,138.38,1.44516734]
[1728578584250,1.447719,138.43,138.37,18.0665]
[1728578584638,1.447719,138.43,138.38,1.44500211]
[1728578585053,1.447719,138.43,138.37,18.0665]
[1728578585431,1.447719,138.43,138.39,7.2254]
[1728578588162,8.671519,138.43,138.39,7.2254]
[1728578592045,7.2259,138.39,138.35,7.2277]
[1728578592256,7.2255,138.4,138.36,7.2274]
[1728578592435,1.447719,138.39,138.36,7.2274]
[1728578592630,8.673619,138.39,138.35,7.2278]
[1728578592835,8.674319,138.38,138.34,18.0705]
[1728578593053,1.447719,138.37,138.34,25.2989]
[1728578593261,8.674819,138.37,138.34,18.0705]
[1728578593755,1.447719,138.37,138.32,13.2411]
[1728578593956,7.2271,138.37,138.33,8.67453944]
[1728578594549,8.675519,138.36,138.32,13.2413]
[1728578594742,1.447719,138.36,138.32,6.0119]
[1728578594964,7.2271,138.37,138.33,7.229]
[1728578595150,1.447719,138.36,138.33,7.229]
[1728578595658,1.447719,138.36,138.34,7.2285]
[1728578595859,1.447719,138.36,138.33,25.3014]
[1728578598339,8.675219,138.36,138.33,25.3014]
[1728578598550,7.2294,138.33,138.29,7.2311]
[1728578598772,1.447719,138.36,138.27,21.3877]
[1728578598949,1.447719,138.36,138.28,1.44597842]
[1728578599268,8.675619,138.36,138.32,7.2294]
[1728578600364,7.2281,138.35,138.31,25.3051]
[1728578600546,1.447719,138.34,138.31,25.3051]
[1728578601148,7.2294,138.33,138.29,7.2311]
[1728578601349,1.447719,138.32,138.29,7.2311]
[1728578601646,8.677419,138.32,138.28,25.3098]
[1728578601847,1.447719,138.32,138.27,7.232]
[1728578602166,8.678019,138.31,138.27,7.2321]
[1728578602476,7.2322,138.28,138.23,29.0407]
[1728578602651,7.2329,138.26,138.22,25.3207]
[1728578602967,1.447719,138.25,138.22,18.0861]
[1728578603143,1.447719,138.25,138.22,25.3208]
[1728578603340,1.447719,138.25,138.22,18.0861]
[1728578603546,1.447719,138.25,138.19,6.2739]
[1728578603547,1.447719,138.25,138.19,25.3262]
[1728578603976,1.447719,138.24,138.19,25.3262]
[1728578604150,8.681619,138.24,138.19,18.09]
[1728578604476,21.447719,138.25,138.22,7.2346]
[1728578604643,28.681019,138.25,138.21,18.0879]
[1728578604845,28.681019,138.25,138.21,25.3232]
[1728578605655,1.447719,138.25,138.21,18.0879]
[1728578605851,8.680019,138.27,138.23,7.2342]
[1728578606255,8.680019,138.27,138.22,7.2346]
[1728578606749,8.680019,138.27,138.23,7.2343]
[1728578607155,8.680019,138.27,138.22,7.2346]
[1728578607668,7.2328,138.26,138.22,7.2346]
[1728578607852,1.447719,138.25,138.22,7.2346]
[1728578608467,1.447719,138.26,138.23,7.2343]
[1728578609969,20.0,138.28,138.25,7.2332]
[1728578610170,21.447719,138.28,138.25,7.2332]
[1728578612075,21.447719,138.28,138.24,1.44650346]
[1728578612076,21.447719,138.28,138.24,8.68010346]
[1728578612278,7.2327,138.26,138.23,18.0849]
[1728578612465,7.2324,138.27,138.23,25.319]
[1728578614773,8.679519,138.28,138.24,7.2337]
[1728578615280,1.447719,138.28,138.2,24.6077]
[1728578615462,7.2328,138.26,138.22,7.2344]
[1728578615853,1.447719,138.29,138.21,1.44675284]
[1728578616054,7.2323,138.27,138.23,7.2342]
[1728578616263,1.447719,138.26,138.23,8.6808533]
[1728578616481,1.447719,138.26,138.23,7.2342]
[1728578621581,38.20249,138.3,138.27,7.2321]
[1728578621582,1.447719,138.29,138.27,7.2321]
[1728578621887,1.447719,138.32,138.29,7.2311]
[1728578622773,8.676819,138.33,138.29,7.2311]
[1728578622967,27.2296,138.32,138.29,7.2311]
[1728578623181,8.678319,138.31,138.27,7.232]
[1728578623763,7.2306,138.31,138.27,8.67817309]
[1728578624086,1.447719,138.32,138.28,7.2316]
[1728578624262,1.447719,138.33,138.3,7.2305]
[1728578625463,7.2287,138.34,138.3,8.6764699]
[1728578625789,1.447719,138.36,138.3,1.4459699]
[1728578625988,1.447719,138.36,138.31,18.0749]
[1728578626173,1.447719,138.37,138.32,1.44567377]
[1728578626373,1.447719,138.37,138.34,7.2284]
[1728578626584,8.674519,138.38,138.34,7.2284]
[1728578626771,8.674519,138.38,138.33,25.3013]
[1728578627092,8.674719,138.37,138.33,25.3013]
[1728578627294,1.447719,138.36,138.31,16.3846]
[1728578627585,7.2281,138.35,138.31,16.3846]
[1728578628484,7.2281,138.35,138.31,23.6147]
[1728578628688,1.447719,138.38,138.31,23.6147]
[1728578628689,1.447719,138.38,138.32,19.5194108]
[1728578628987,7.2273,138.37,138.33,7.2289]
[1728578629169,8.675219,138.36,138.32,25.3031]
[1728578629364,7.2275,138.36,138.32,25.3031]
[1728578629562,1.447719,138.38,138.33,7.229]
[1728578629764,8.674319,138.38,138.33,7.229]
[1728578629983,1.447719,138.37,138.33,7.229]
[1728578630302,7.2261,138.39,138.34,1.44551776]
[1728578630591,1.447719,138.38,138.35,25.2976]
[1728578630767,1.447719,138.38,138.35,18.0698]
[1728578630964,7.2261,138.39,138.35,25.2978]
[1728578631199,8.674219,138.38,138.35,18.0698]
[1728578633394,7.2265,138.38,138.35,18.0698]
[1728578633869,7.2265,138.38,138.35,26.74321843]
[1728578634270,1.447719,138.41,138.31,38.36433101]
[1728578634497,1.447719,138.41,138.34,7.2285]
[1728578634790,7.2266,138.38,138.35,1.44541721]
[1728578635495,7.2266,138.38,138.35,8.67341721]
[1728578635676,7.226,138.39,138.35,8.67341721]
[1728578635874,1.447719,138.41,138.35,1.44541721]
[1728578636076,1.447719,138.41,138.36,18.0686]
[1728578636275,7.2256,138.4,138.36,25.296]
[1728578636590,1.447719,138.44,138.36,18.0686]
[1728578636591,7.226,138.39,138.36,18.0686]
[1728578639691,7.2255,138.4,138.36,26.74129928]
[1728578639878,1.447719,138.42,138.36,19.51389928]
[1728578640080,7.2251,138.41,138.37,7.2269]
[1728578640394,8.673219,138.4,138.36,25.2959]
[1728578640572,1.447719,138.42,138.37,1.44530213]
[1728578640771,1.447719,138.42,138.37,8.67183635]
[1728578641101,1.447719,138.42,138.36,25.2959]
[1728578641102,7.2254,138.4,138.36,25.2959]
[1728578643887,1.447719,138.42,138.36,18.0686]
[1728578644088,7.226,138.39,138.36,18.0686]
[1728578644599,7.2265,138.38,138.35,7.2278]
[1728578644768,7.226,138.39,138.35,7.2278]
[1728578645093,7.226,138.39,138.35,25.2978]
[1728578645886,7.226,138.39,138.36,1.44530116]
[1728578646279,7.2256,138.4,138.36,8.6727011]
[1728578646592,1.447719,138.39,138.34,6.6597]
[1728578646802,0.12549,138.41,138.32,18.0727]
[1728578647088,7.2288,138.34,138.31,22.6994]
[1728578647400,18.0662,138.38,138.32,8.67523192]
[1728578647565,18.0662,138.38,138.31,40.7747]
[1728578647566,1.447719,138.38,138.35,7.228]
[1728578647990,7.2263,138.39,138.35,8.67343913]
[1728578648382,8.674219,138.38,138.35,8.67343913]
[1728578648591,8.674219,138.38,138.35,7.228]
[1728578648808,8.674219,138.38,138.32,1.44545953]
[1728578648809,1.447719,138.38,138.32,1.44545953]
[1728578649111,7.2307,138.3,138.28,6.3491]
[1728578649286,7.2316,138.29,138.25,24.4313]
[1728578649492,7.2305,138.31,138.26,8.67864302]
[1728578649699,7.2305,138.31,138.27,7.2321]
[1728578649921,7.2296,138.32,138.28,8.6777688]
[1728578650096,8.677319,138.32,138.27,25.312]
[1728578650289,8.677919,138.31,138.27,25.312]
[1728578650491,7.2302,138.31,138.27,25.312]
[1728578651987,7.2291,138.33,138.28,8.67737535]
[1728578652198,7.2296,138.32,138.28,8.67737535]
[1728578652489,1.447719,138.35,138.31,7.2297]
[1728578652684,7.2285,138.34,138.3,7.2305]
[1728578652888,7.2284,138.35,138.3,8.67634195]
[1728578653112,8.676319,138.34,138.29,41.853784]
[1728578653305,7.2286,138.34,138.3,1.44584513]
[1728578653513,1.447719,138.33,138.28,7.2315]
[1728578653696,7.2291,138.33,138.29,8.67703912]
[1728578654191,7.2291,138.33,138.29,1.44593912]
[1728578654588,1.447719,138.36,138.29,1.44593912]
[1728578654793,7.229,138.34,138.29,8.67693912]
[1728578655221,1.447719,138.33,138.28,18.0787]
[1728578655513,7.2294,138.33,138.29,7.231]
[1728578655701,7.2294,138.33,138.29,8.67696591]
[1728578656191,8.677719,138.32,138.28,7.2315]
[1728578656389,1.447719,138.34,138.28,1.44609246]
[1728578656597,1.447719,138.34,138.29,7.231]
[1728578656598,7.229,138.34,138.29,7.231]
[1728578656797,23.902374,138.37,138.29,7.231]
[1728578656798,1.447719,138.36,138.3,1.44592624]
[1728578657009,7.2281,138.35,138.31,8.67596428]
[1728578657216,1.447719,138.34,138.3,7.2302]
[1728578657397,1.447719,138.37,138.3,7.2302]
[1728578657914,7.228,138.36,138.31,25.3046]
[1728578658221,1.447719,138.35,138.31,25.3046]
[1728578658387,20.0,138.39,138.31,25.3046]
[1728578658388,7.2276,138.36,138.31,25.3046]
[1728578658587,7.2276,138.36,138.32,7.2294]
[1728578658805,7.227,138.37,138.33,7.2287]
[1728578659009,8.674219,138.38,138.34,7.2285]
[1728578659215,1.447719,138.4,138.34,1.44552322]
[1728578659389,8.673419,138.4,138.36,7.2274]
[1728578659595,8.673419,138.4,138.35,18.0696]
[1728578659797,8.673419,138.4,138.36,8.67281235]
[1728578659991,7.225,138.41,138.37,7.2266]
[1728578660191,1.447719,138.42,138.35,18.0696]
[1728578660192,7.226,138.39,138.35,25.2975]
[1728578660797,7.2254,138.4,138.36,7.2271]
[1728578661392,7.2254,138.4,138.36,6.7271]
[1728578662215,18.0603,138.43,138.32,21.97973101]
[1728578662216,7.2268,138.38,138.33,0.25098]
[1728578662714,7.2259,138.39,138.35,7.2279]
[1728578662917,7.2259,138.39,138.35,8.67320584]
[1728578663099,7.2259,138.39,138.35,7.2279]
[1728578663300,7.2259,138.39,138.36,1.44530921]
[1728578663602,7.2259,138.39,138.35,7.2279]
[1728578664705,1.447719,138.43,138.36,19.51350347]
[1728578664905,7.2249,138.41,138.37,7.2268]
[1728578665095,7.2249,138.41,138.38,1.44296847]
[1728578665501,7.2249,138.41,138.37,7.2268]
[1728578665701,1.447719,138.4,138.34,23.776884]
[1728578666226,7.2264,138.38,138.34,31.005084]
[1728578666402,7.227,138.37,138.33,25.3014]
[1728578668496,7.2266,138.38,138.34,8.67384019]
[1728578668719,7.2266,138.38,138.34,7.2284]
[1728578668920,7.2266,138.38,138.34,8.67384061]
[1728578669423,8.672919,138.41,138.37,7.2269]
[1728578669603,1.447719,138.41,138.35,19.51513702]
[1728578669804,7.2255,138.4,138.36,7.2272]
[1728578670003,7.2255,138.4,138.35,19.51513702]
[1728578670004,7.226,138.39,138.35,25.2976]
[1728578670999,1.447719,138.42,138.35,18.0697]
[1728578671195,7.2256,138.4,138.36,7.2274]
[1728578672022,1.447719,138.42,138.33,23.776884]
[1728578672217,1.447719,138.42,138.34,0.12549]
[1728578672416,7.2252,138.41,138.37,7.2269]
[1728578674208,1.447719,138.42,138.36,18.0686]
[1728578674410,7.2252,138.41,138.37,7.2267]
[1728578675024,7.2257,138.4,138.36,25.296]
[1728578676033,1.447719,138.43,138.34,0.12549]
[1728578676217,7.2261,138.39,138.35,7.2278]
[1728578676415,7.2261,138.39,138.36,1.44521333]
[1728578676616,7.2261,138.39,138.35,25.2978]
[1728578678528,7.2261,138.39,138.36,7.2275]
[1728578678728,7.2261,138.39,138.36,8.67271805]
[1728578679135,7.2261,138.39,138.36,7.2275]
[1728578679324,7.2261,138.39,138.35,25.2979]
[1728578679524,7.2261,138.39,138.32,45.75661501]
[1728578679525,7.2275,138.36,138.32,18.0727]
[1728578679837,7.2281,138.35,138.32,18.0727]
[1728578680015,7.2271,138.37,138.33,7.2289]
[1728578680210,7.2271,138.37,138.34,1.44552262]
[1728578680522,7.2265,138.38,138.34,8.67402262]
[1728578681243,7.227,138.37,138.33,31.005784]
[1728578681411,7.2276,138.36,138.33,23.776884]
[1728578682225,7.2275,138.36,138.33,23.776884]
[1728578682426,1.447719,138.39,138.33,23.776884]
[1728578682619,1.447719,138.39,138.33,31.005884]
[1728578682620,7.227,138.37,138.33,31.005884]
[1728578683526,1.447719,138.39,138.32,18.0727]
[1728578683847,7.2277,138.36,138.32,25.3019]
[1728578686725,7.2271,138.37,138.33,7.2289]
[1728578687847,7.2271,138.37,138.34,7.2285]
[1728578688045,7.2271,138.37,138.32,18.0727]
[1728578688345,7.2271,138.37,138.33,7.2287]
[1728578688644,7.2261,138.39,138.34,19.51675354]
[1728578689129,7.2261,138.39,138.35,7.2278]
[1728578689328,7.2261,138.39,138.36,1.44525887]
[1728578689532,1.447719,138.42,138.37,23.776884]
[1728578689741,7.2255,138.4,138.37,23.776884]
[1728578689974,1.447719,138.42,138.38,1.44503285]
[1728578689975,7.2252,138.41,138.38,1.44503285]
[1728578691224,7.2244,138.42,138.38,8.67113285]
[1728578691632,47.01933542,138.48,138.4,23.776884]
[1728578691633,36.106619,138.47,138.4,23.776884]
[1728578691923,7.2233,138.44,138.4,31.001984]
[1728578692233,7.2231,138.45,138.41,8.66943381]
[1728578692620,7.2224,138.46,138.42,7.2243]
[1728578692847,7.2224,138.46,138.43,1.44453597]
[1728578693549,7.2213,138.48,138.44,7.2232]
[1728578693849,7.2213,138.48,138.45,1.44440882]
[1728578694822,7.2208,138.49,138.45,8.66720882]
[1728578695949,7.2202,138.5,138.46,7.2221]
[1728578696155,7.2202,138.5,138.47,1.44411336]
[1728578697128,7.2202,138.5,138.46,7.2221]
[1728578697432,7.2202,138.5,138.47,1.44413399]
[1728578698728,7.2202,138.5,138.45,25.2792]
[1728578698729,7.2202,138.5,138.46,1.44410006]
[1728578699731,7.2202,138.5,138.45,25.2792]
[1728578700333,7.2202,138.5,138.46,1.44410123]
[1728578700541,1.447719,138.52,138.44,0.12549]
[1728578700852,7.2218,138.47,138.43,13.3041]
[1728578701655,7.2223,138.46,138.42,41.0402]
[1728578703362,7.2228,138.45,138.41,7.2247]
[1728578703657,1.447719,138.44,138.39,15.1902]
[1728578703847,18.0559,138.46,138.39,15.1902]
[1728578703848,7.2245,138.42,138.39,15.1902]
[1728578704150,7.2245,138.42,138.38,7.2261]
[1728578704655,1.447719,138.45,138.39,1.44486337]
[1728578704856,1.447719,138.45,138.36,39.4454]
[1728578705060,7.2248,138.42,138.37,7.2266]
[1728578705362,7.2248,138.42,138.38,7.2261]
[1728578705735,1.447719,138.45,138.36,39.4454]
[1728578705736,18.0588,138.44,138.36,39.4454]
[1728578705950,7.2255,138.4,138.36,39.4454]
[1728578707457,7.2255,138.4,138.36,46.6728]
[1728578707757,7.2255,138.4,138.36,39.4454]
[1728578707952,7.2255,138.4,138.36,18.0677]
[1728578708152,1.447719,138.39,138.33,25.3009]
[1728578708348,7.2274,138.37,138.34,1.44548607]
[1728578708972,7.2274,138.37,138.33,25.3008]
[1728578709149,7.2266,138.38,138.33,25.3008]
[1728578709465,7.2266,138.38,138.34,7.2285]
[1728578709666,7.2266,138.38,138.34,8.67395141]
[1728578709846,1.447719,138.41,138.34,8.67395141]
[1728578710050,1.447719,138.41,138.35,18.0696]
[1728578710359,1.447719,138.41,138.36,1.44523587]
[1728578710865,7.2257,138.4,138.36,8.67253587]
[1728578711055,7.2259,138.39,138.36,1.44523587]
[1728578711254,1.447719,138.41,138.36,1.44523587]
[1728578711457,7.2254,138.4,138.36,7.2273]
[1728578712364,1.447719,138.42,138.34,7.35349]
[1728578712365,7.2268,138.38,138.34,7.35349]
[1728578712547,1.447719,138.42,138.35,8.67315203]
[1728578712745,1.447719,138.42,138.35,1.44525203]
[1728578712947,1.447719,138.42,138.36,18.0686]
[1728578713146,1.447719,138.42,138.37,1.44507802]
[1728578713342,7.2253,138.41,138.36,25.2958]
[1728578713561,7.2253,138.41,138.37,7.2268]
[1728578714157,1.447719,138.4,138.34,0.12549]
[1728578714461,7.2263,138.39,138.35,7.2277]
[1728578714770,7.2263,138.39,138.36,1.44523722]
[1728578715365,7.2255,138.4,138.37,1.44523632]
[1728578715564,7.2249,138.41,138.37,8.67203632]
[1728578715954,7.2254,138.4,138.36,7.2273]
[1728578716673,7.2251,138.41,138.37,8.67205151]
[1728578716846,7.2251,138.41,138.37,7.2269]
[1728578717472,7.2254,138.4,138.37,7.2269]
[1728578717648,7.2254,138.4,138.36,7.2274]
[1728578720265,1.447719,138.42,138.35,18.0696]
[1728578720568,7.2261,138.39,138.35,23.7974]
[1728578721065,7.2265,138.38,138.35,23.7975]
[1728578721667,1.447719,138.42,138.36,1.4452479]
[1728578721868,7.2245,138.42,138.38,7.226]
[1728578722144,7.2245,138.42,138.37,18.0671]
[1728578722145,7.2245,138.42,138.39,8.67076391]
[1728578722873,7.2236,138.44,138.4,7.2253]
[1728578723044,7.2236,138.44,138.41,1.44474602]
[1728578723783,7.2232,138.45,138.41,8.66944602]
[1728578723980,7.2223,138.46,138.42,7.2239]
[1728578724182,7.2223,138.46,138.43,1.44453058]
[1728578724407,8.669819,138.47,138.43,8.66813058]
[1728578724687,7.2236,138.44,138.41,18.0615]
[1728578724887,7.2236,138.44,138.4,7.2253]
[1728578725379,7.2245,138.42,138.38,48.1193]
[1728578725585,1.447719,138.46,138.39,7.2259]
[1728578725586,7.224,138.43,138.39,7.2259]
[1728578726568,7.2235,138.44,138.4,7.2254]
[1728578726770,1.447719,138.46,138.41,1.4447113]
[1728578726971,1.447719,138.46,138.42,8.66861924]
[1728578726972,7.2224,138.46,138.42,8.66861924]
[1728578727292,7.2224,138.46,138.42,7.224]
[1728578727683,1.447719,138.48,138.4,18.0631]
[1728578727987,7.2228,138.45,138.41,7.2248]
[1728578728595,7.2233,138.44,138.4,25.2883]
[1728578728889,7.223,138.45,138.41,7.2249]
[1728578729662,1.447719,138.47,138.4,25.2883]
[1728578729880,7.2239,138.43,138.4,25.2883]
[1728578730091,1.447719,138.47,138.4,25.2883]
[1728578730264,7.2235,138.44,138.4,25.2883]
[1728578730682,7.223,138.45,138.41,8.669477]
[1728578730998,7.223,138.45,138.41,7.2248]
[1728578734484,7.2242,138.43,138.38,30.0541]
[1728578734682,1.447719,138.44,138.38,22.8282]
[1728578734873,7.2235,138.44,138.4,7.2249]
[1728578736185,7.223,138.45,138.41,8.66938698]
[1728578737197,7.223,138.45,138.42,1.4446556]
[1728578737594,7.223,138.45,138.41,7.2247]
[1728578739103,1.447719,138.47,138.4,0.12549]
[1728578739271,7.2234,138.44,138.4,7.35079]
[1728578740097,1.447719,138.43,138.39,18.0643]
[1728578740399,7.2246,138.42,138.39,18.0643]
[1728578740582,7.2241,138.43,138.39,25.2902]
[1728578740785,7.2241,138.43,138.39,24.7902]
[1728578741000,7.2241,138.43,138.4,1.44485386]
[1728578741180,7.2241,138.43,138.39,24.7902]
[1728578741710,7.2247,138.42,138.39,17.5643]
[1728578742805,7.2249,138.41,138.38,30.0544]
[1728578743105,1.447719,138.45,138.38,22.8282]
[1728578743277,1.447719,138.45,138.36,18.0676]
[1728578743278,7.226,138.39,138.36,18.0676]
[1728578744379,1.447719,138.42,138.34,22.279]
[1728578744380,18.0628,138.41,138.34,22.279]
[1728578744584,1.447719,138.4,138.35,1.44533627]
[1728578744790,7.2268,138.38,138.35,1.44533627]
[1728578745003,7.2271,138.37,138.34,23.72433919]
[1728578745992,7.2266,138.38,138.34,30.95283919]
[1728578746189,7.2266,138.38,138.34,23.72433919]
[1728578746391,1.447719,138.4,138.35,7.228]
[1728578746392,7.2261,138.39,138.35,7.228]
[1728578746586,1.447719,138.43,138.36,1.44522171]
[1728578746787,7.2254,138.4,138.36,1.44522171]
[1728578747603,7.2254,138.4,138.36,8.67252171]
[1728578748119,7.226,138.39,138.36,7.2273]
[1728578748613,7.226,138.39,138.37,1.44519118]
[1728578748921,7.2265,138.38,138.34,22.279]
[1728578749203,7.2265,138.38,138.34,29.5073]
[1728578749401,1.447719,138.41,138.33,7.2288]
[1728578749402,7.227,138.37,138.33,7.2288]
[1728578749913,7.227,138.37,138.34,1.44541872]
[1728578750406,7.2265,138.38,138.34,8.67351872]
[1728578751309,7.2265,138.38,138.35,1.44537846]
[1728578752009,7.2265,138.38,138.34,25.2994]
[1728578752305,7.2265,138.38,138.35,1.44538501]
[1728578754405,7.226,138.39,138.36,7.2274]
[1728578754597,7.226,138.39,138.37,1.44522366]
[1728578754794,7.2255,138.4,138.37,1.44522366]
[1728578754998,7.225,138.41,138.37,8.67172366]
[1728578755203,1.447719,138.43,138.37,7.2265]
[1728578755503,7.2254,138.4,138.37,7.2265]
[1728578756313,7.2252,138.41,138.37,7.2265]
[1728578756523,7.2261,138.39,138.36,18.0686]
[1728578756820,7.2257,138.4,138.36,25.296]
[1728578758227,19.507419,138.43,138.36,18.0686]
[1728578758388,7.2263,138.39,138.36,18.0686]
[1728578759114,7.2263,138.39,138.37,1.44517543]
[1728578759513,7.2263,138.39,138.36,18.0686]
[1728578760022,7.2263,138.39,138.37,1.44517585]
[1728578760401,7.2263,138.39,138.36,18.0686]
[1728578761002,7.2263,138.39,138.36,25.296]
[1728578761322,7.2245,138.42,138.38,7.2261]
[1728578761508,7.2245,138.42,138.39,1.44494406]
[1728578762214,16.4743,138.44,138.39,1.44494406]
[1728578762418,1.447719,138.45,138.39,1.44494406]